fUST/lending_fUST_20251214
["ID","MTS","AMOUNT","RATE_DAILY","PERIOD"]
[398455556,1765673447549,-334.0,0.00021876,2]
[398455557,1765673447559,-152.0,0.00021876,2]
[398455558,1765673447568,-152.0,0.00021876,2]
[398455559,1765673447578,-334.0,0.00021876,2]
[398455560,1765673447589,-152.0,0.00021876,2]
[398455561,1765673447599,-334.0,0.00021876,2]
[398455562,1765673447610,-152.0,0.00021876,2]
[398455563,1765673447625,-334.0,0.00021876,2]
[398455564,1765673447635,-334.0,0.00021876,2]
[398455565,1765673447644,-152.0,0.00021876,2]
[398455566,1765673447839,-334.0,0.00021876,2]
[398455567,1765673447859,-152.0,0.00021876,2]
[398455568,1765673447868,-242.09086355,0.00021876,2]
[398455569,1765673447877,-280.76764863,0.00021876,2]
[398455570,1765673447891,-3000.0,0.000219,2]
[398455571,1765673447901,-9376.65047148,0.000219,2]
[398455572,1765673447910,-150.0,0.000219,2]
[398455573,1765673447920,-151.0,0.000219,2]
[398455574,1765673447929,-151.0,0.000219,2]
[398455575,1765673447939,-151.0,0.000219,2]
[398455576,1765673447948,-262.138631,0.000219,2]
[398455577,1765673447957,-250.0,0.000219,10]
[398455578,1765673447967,-3000.0,0.0002191,2]
[398455579,1765673447976,-151.0,0.0002191,2]
[398455580,1765673447985,-306.879182,0.0002191,2]
[398455581,1765673447995,-151.0,0.0002191,2]
[398455582,1765673448008,-306.879182,0.0002191,2]
[398455583,1765673448018,-306.879182,0.0002191,2]
[398455584,1765673448027,-306.879182,0.0002191,2]
[398455585,1765673448037,-492.395281,0.0002191,2]
[398455586,1765673448046,-492.395281,0.0002191,2]
[398455587,1765673448057,-492.395281,0.0002191,2]
[398455588,1765673448068,-492.395281,0.0002191,2]
[398455589,1765673448078,-3135.55681461,0.00021917,2]
[398455590,1765673448088,-916.92807407,0.00021917,2]
[398455591,1765673448098,-1000.0,0.00021917,2]
[398455592,1765673448108,-12872.87723564,0.00021917,2]
[398455593,1765673448117,-2070.455901,0.00021917,2]
[398455594,1765673448126,-535.86103687,0.00021917,2]
[398455595,1765673448135,-500.0,0.00021917,2]
[398455596,1765673448145,-500.0,0.00021917,2]
[398455597,1765673448155,-498.79082087,0.00021917,2]
[398455598,1765673448164,-500.0,0.00021917,2]
[398455599,1765673448173,-500.0,0.00021917,2]
[398455600,1765673448183,-500.0,0.00021917,2]
[398455601,1765673448193,-1302.4,0.00021917,2]
[398455602,1765673448202,-917.54,0.00021917,2]
[398455603,1765673448212,-785.42,0.00021917,2]
[398455604,1765673448222,-500.0,0.00021917,2]
[398455605,1765673448231,-761.88,0.00021917,2]
[398455606,1765673448240,-500.0,0.00021917,2]
[398455607,1765673448250,-849.64,0.00021917,2]
[398455608,1765673448259,-500.0,0.00021917,2]
[398455609,1765673448268,-500.0,0.00021917,2]
[398455610,1765673448278,-334.35490454,0.00021917,2]
[398455611,1765673448287,-500.0,0.00021917,2]
[398455612,1765673448297,-502.60952052,0.00021917,2]
[398455613,1765673448306,-500.0,0.00021917,2]
[398455614,1765673448315,-533.99,0.00021917,2]
[398455615,1765673448326,-500.0,0.00021917,2]
[398455616,1765673448335,-746.12,0.00021917,2]
[398455617,1765673448345,-500.0,0.00021917,2]
[398455618,1765673448354,-500.0,0.00021917,2]
[398455619,1765673448363,-821.46,0.00021917,2]
[398455620,1765673448373,-1273.7,0.00021917,2]
[398455621,1765673448382,-500.0,0.00021917,2]
[398455622,1765673448391,-500.0,0.00021917,2]
[398455623,1765673448400,-1529.53,0.00021917,2]
[398455624,1765673448410,-500.0,0.00021917,2]
[398455625,1765673448419,-851.19,0.00021917,2]
[398455626,1765673448428,-500.0,0.00021917,2]
[398455627,1765673448437,-500.0,0.00021917,2]
[398455628,1765673448447,-500.0,0.00021917,2]
[398455629,1765673448457,-500.0,0.00021917,2]
[398455630,1765673448466,-500.0,0.00021917,2]
[398455631,1765673448475,-500.0,0.00021917,2]
[398455632,1765673448484,-220.23861024,0.00021917,2]
[398455633,1765673448494,-500.0,0.00021917,2]
[398455634,1765673448503,-701.87,0.00021917,2]
[398455635,1765673448512,-500.0,0.00021917,2]
[398455636,1765673448522,-500.0,0.00021917,2]
[398455637,1765673448531,-500.0,0.00021917,2]
[398455638,1765673448540,-500.0,0.00021917,2]
[398455639,1765673448549,-500.0,0.00021917,2]
[398455640,1765673448559,-1568.35,0.00021917,2]
[398455641,1765673448568,-151.0,0.00021917,2]
[398455642,1765673448578,-151.0,0.00021917,2]
[398455643,1765673448587,-500.0,0.00021917,2]
[398455644,1765673448596,-151.0,0.00021917,2]
[398455645,1765673448606,-500.0,0.00021917,2]
[398455646,1765673448615,-151.0,0.00021917,2]
[398455647,1765673448624,-151.0,0.00021917,2]
[398455648,1765673448634,-500.0,0.00021917,2]
[398455649,1765673448643,-151.0,0.00021917,2]
[398455650,1765673448652,-500.0,0.00021917,2]
[398455651,1765673448661,-500.0,0.00021917,2]
[398455652,1765673448671,-500.0,0.00021917,2]
[398455653,1765673448680,-692.15,0.00021917,2]
[398455654,1765673448689,-500.0,0.00021917,2]
[398455655,1765673448698,-539.07,0.00021917,2]
[398455656,1765673448707,-500.0,0.00021917,2]
[398455657,1765673448716,-500.0,0.00021917,2]
[398455658,1765673448726,-1040.76,0.00021917,2]
[398455659,1765673448736,-500.0,0.00021917,2]
[398455660,1765673448746,-500.0,0.00021917,2]
[398455661,1765673448755,-500.0,0.00021917,2]
[398455662,1765673448764,-500.0,0.00021917,2]
[398455663,1765673448774,-500.0,0.00021917,2]
[398455664,1765673448784,-500.0,0.00021917,2]
[398455665,1765673448794,-501.11,0.00021917,2]
[398455666,1765673448806,-500.0,0.00021917,2]
[398455667,1765673448819,-500.0,0.00021917,2]
[398455668,1765673448828,-500.0,0.00021917,2]
[398455669,1765673448838,-1526.54,0.00021917,2]
[398455670,1765673448849,-500.0,0.00021917,2]
[398455671,1765673448859,-1324.59,0.00021917,2]
[398455672,1765673448868,-500.0,0.00021917,2]
[398455673,1765673448877,-500.0,0.00021917,2]
[398455674,1765673448886,-843.79,0.00021917,2]
[398455675,1765673448895,-500.0,0.00021917,2]
[398455676,1765673448904,-1246.9,0.00021917,2]
[398455677,1765673448914,-500.0,0.00021917,2]
[398455678,1765673448924,-735.3,0.00021917,2]
[398455679,1765673448933,-500.0,0.00021917,2]
[398455680,1765673448942,-935.07,0.00021917,2]
[398455681,1765673448951,-500.0,0.00021917,2]
[398455682,1765673448961,-500.0,0.00021917,2]
[398455683,1765673448970,-894.44,0.00021917,2]
[398455684,1765673448979,-500.0,0.00021917,2]
[398455685,1765673448988,-514.59517655,0.00021917,2]
[398455686,1765673448997,-500.0,0.00021917,2]
[398455687,1765673449006,-500.0,0.00021917,2]
[398455688,1765673449015,-500.0,0.00021917,2]
[398455689,1765673449025,-500.0,0.00021917,2]
[398455690,1765673449034,-500.0,0.00021917,2]
[398455691,1765673449043,-500.0,0.00021917,2]
[398455692,1765673449052,-500.0,0.00021917,2]
[398455693,1765673449061,-1456.14,0.00021917,2]
[398455694,1765673449071,-500.0,0.00021917,2]
[398455695,1765673449080,-500.0,0.00021917,2]
[398455696,1765673449089,-500.0,0.00021917,2]
[398455697,1765673449099,-500.0,0.00021917,2]
[398455698,1765673449108,-500.0,0.00021917,2]
[398455699,1765673449117,-737.9,0.00021917,2]
[398455700,1765673449126,-500.0,0.00021917,2]
[398455701,1765673449135,-500.0,0.00021917,2]
[398455702,1765673449144,-1171.35,0.00021917,2]
[398455703,1765673449154,-500.0,0.00021917,2]
[398455704,1765673449163,-500.0,0.00021917,2]
[398455705,1765673449173,-500.0,0.00021917,2]
[398455706,1765673449182,-500.0,0.00021917,2]
[398455707,1765673449192,-1138.47,0.00021917,2]
[398455708,1765673449202,-500.0,0.00021917,2]
[398455709,1765673449211,-500.0,0.00021917,2]
[398455710,1765673449221,-500.0,0.00021917,2]
[398455711,1765673449230,-500.0,0.00021917,2]
[398455712,1765673449240,-325.50526293,0.00021917,2]
[398455713,1765673449251,-500.0,0.00021917,2]
[398455714,1765673449260,-590.67487083,0.00021917,2]
[398455715,1765673449269,-500.0,0.00021917,2]
[398455716,1765673449279,-500.0,0.00021917,2]
[398455717,1765673449288,-167.0720205,0.00021917,2]
[398455718,1765673449298,-1000.0,0.00021917,2]
[398455719,1765673449307,-500.0,0.00021917,2]
[398455720,1765673449317,-2286.22,0.00021917,2]
[398455721,1765673449326,-500.0,0.00021917,2]
[398455722,1765673449336,-1817.62,0.00021917,2]
[398455723,1765673449345,-500.0,0.00021917,2]
[398455724,1765673449354,-500.0,0.00021917,2]
[398455725,1765673449363,-500.0,0.00021917,2]
[398455726,1765673449372,-500.0,0.00021917,2]
[398455727,1765673449381,-586.43,0.00021917,2]
[398455728,1765673449401,-1136.04,0.00021917,2]
[398455729,1765673449411,-760.45,0.00021917,2]
[398455730,1765673449420,-500.0,0.00021917,2]
[398455731,1765673449431,-633.32,0.00021917,2]
[398455732,1765673449440,-1131.15,0.00021917,2]
[398455733,1765673449450,-1105.72,0.00021917,2]
[398455734,1765673449461,-500.0,0.00021917,2]
[398455735,1765673449471,-500.0,0.00021917,2]
[398455736,1765673449481,-500.0,0.00021917,2]
[398455737,1765673449491,-2312.11,0.00021917,2]
[398455738,1765673449500,-500.0,0.00021917,2]
[398455739,1765673449510,-500.0,0.00021917,2]
[398455740,1765673449520,-821.3,0.00021917,2]
[398455741,1765673449529,-500.0,0.00021917,2]
[398455742,1765673449539,-2090.94,0.00021917,2]
[398455743,1765673449549,-500.0,0.00021917,2]
[398455744,1765673449559,-500.0,0.00021917,2]
[398455745,1765673449569,-500.0,0.00021917,2]
[398455746,1765673449578,-665.62,0.00021917,2]
[398455747,1765673449588,-391.14003706,0.00021917,2]
[398455748,1765673449597,-500.0,0.00021917,2]
[398455749,1765673449607,-500.0,0.00021917,2]
[398455750,1765673449617,-500.0,0.00021917,2]
[398455751,1765673449627,-782.53,0.00021917,2]
[398455752,1765673449637,-500.0,0.00021917,2]
[398455753,1765673449646,-500.0,0.00021917,2]
[398455754,1765673449656,-500.0,0.00021917,2]
[398455755,1765673449665,-507.52,0.00021917,2]
[398455756,1765673449675,-565.24200423,0.00021917,2]
[398455757,1765673449684,-500.0,0.00021917,2]
[398455758,1765673449694,-500.0,0.00021917,2]
[398455759,1765673449705,-500.0,0.00021917,2]
[398455760,1765673449714,-607.24,0.00021917,2]
[398455761,1765673449724,-500.0,0.00021917,2]
[398455762,1765673449734,-500.0,0.00021917,2]
[398455763,1765673449743,-710.12,0.00021917,2]
[398455764,1765673449753,-500.0,0.00021917,2]
[398455765,1765673449762,-500.0,0.00021917,2]
[398455766,1765673449771,-514.36,0.00021917,2]
[398455767,1765673449781,-500.69610657,0.00021917,2]
[398455768,1765673449791,-547.45,0.00021917,2]
[398455769,1765673449800,-835.16,0.00021917,2]
[398455770,1765673449810,-685.86,0.00021917,2]
[398455771,1765673449824,-500.0,0.00021917,2]
[398455772,1765673449835,-500.0,0.00021917,2]
[398455773,1765673449848,-764.45,0.00021917,2]
[398455774,1765673449859,-506.35,0.00021917,2]
[398455775,1765673449871,-500.0,0.00021917,2]
[398455776,1765673449880,-500.0,0.00021917,2]
[398455777,1765673449890,-500.0,0.00021917,2]
[398455778,1765673449899,-500.0,0.00021917,2]
[398455779,1765673449911,-500.0,0.00021917,2]
[398455780,1765673449922,-500.0,0.00021917,2]
[398455781,1765673449932,-500.0,0.00021917,2]
[398455782,1765673449941,-500.0,0.00021917,2]
[398455783,1765673449950,-1117.18,0.00021917,2]
[398455784,1765673449960,-500.0,0.00021917,2]
[398455785,1765673449970,-500.0,0.00021917,2]
[398455786,1765673449980,-500.0,0.00021917,2]
[398455787,1765673449990,-500.0,0.00021917,2]
[398455788,1765673450000,-500.0,0.00021917,2]
[398455789,1765673450011,-637.44,0.00021917,2]
[398455790,1765673450023,-500.0,0.00021917,2]
[398455791,1765673450033,-500.0,0.00021917,2]
[398455792,1765673450050,-500.0,0.00021917,2]
[398455793,1765673450060,-500.0,0.00021917,2]
[398455794,1765673450069,-500.0,0.00021917,2]
[398455795,1765673450079,-594.34,0.00021917,2]
[398455796,1765673450088,-500.0,0.00021917,2]
[398455797,1765673450097,-500.0,0.00021917,2]
[398455798,1765673450107,-1224.82,0.00021917,2]
[398455799,1765673450116,-500.0,0.00021917,2]
[398455800,1765673450126,-500.0,0.00021917,2]
[398455801,1765673450135,-782.36,0.00021917,2]
[398455802,1765673450147,-2017.69,0.00021917,2]
[398455803,1765673450162,-500.0,0.00021917,2]
[398455804,1765673450172,-500.0,0.00021917,2]
[398455805,1765673450182,-733.45,0.00021917,2]
[398455806,1765673450191,-1862.86,0.00021917,2]
[398455807,1765673450201,-1017.52,0.00021917,2]
[398455808,1765673450211,-180.82211931,0.00021917,2]
[398455809,1765673450221,-500.0,0.00021917,2]
[398455810,1765673450231,-500.0,0.00021917,2]
[398455811,1765673450241,-500.0,0.00021917,2]
[398455812,1765673450251,-562.11,0.00021917,2]
[398455813,1765673450340,-789.76,0.00021917,2]
[398455814,1765673450350,-500.72709896,0.00021917,2]
[398455815,1765673450359,-500.0,0.00021917,2]
[398455816,1765673450368,-1116.89,0.00021917,2]
[398455817,1765673450377,-500.0,0.00021917,2]
[398455818,1765673450387,-500.0,0.00021917,2]
[398455819,1765673450396,-500.0,0.00021917,2]
[398455820,1765673450406,-1892.96,0.00021917,2]
[398455821,1765673450415,-500.0,0.00021917,2]
[398455822,1765673450424,-500.0,0.00021917,2]
[398455823,1765673450432,-1233.58,0.00021917,2]
[398455824,1765673450442,-1149.16,0.00021917,2]
[398455825,1765673450451,-500.0,0.00021917,2]
[398455826,1765673450460,-1283.57,0.00021917,2]
[398455827,1765673450469,-500.0,0.00021917,2]
[398455828,1765673450478,-501.02,0.00021917,2]
[398455829,1765673450487,-500.0,0.00021917,2]
[398455830,1765673450495,-500.0,0.00021917,2]
[398455831,1765673450504,-760.02,0.00021917,2]
[398455832,1765673450513,-500.0,0.00021917,2]
[398455833,1765673450522,-500.0,0.00021917,2]
[398455834,1765673450531,-1537.83,0.00021917,2]
[398455835,1765673450539,-1677.29,0.00021917,2]
[398455836,1765673450548,-976.63,0.00021917,2]
[398455837,1765673450557,-1525.32,0.00021917,2]
[398455838,1765673450566,-1544.44,0.00021917,2]
[398455839,1765673450575,-500.0,0.00021917,2]
[398455840,1765673450584,-500.0,0.00021917,2]
[398455841,1765673450593,-501.17777329,0.00021917,2]
[398455842,1765673450602,-357.99004549,0.00021917,2]
[398455843,1765673450611,-500.0,0.00021917,2]
[398455844,1765673450620,-500.0,0.00021917,2]
[398455845,1765673450629,-737.84,0.00021917,2]
[398455846,1765673450638,-500.0,0.00021917,2]
[398455847,1765673450647,-500.0,0.00021917,2]
[398455848,1765673450656,-500.0,0.00021917,2]
[398455849,1765673450665,-500.0,0.00021917,2]
[398455850,1765673450674,-1729.79,0.00021917,2]
[398455851,1765673450683,-500.0,0.00021917,2]
[398455852,1765673450692,-500.0,0.00021917,2]
[398455853,1765673450701,-802.92,0.00021917,2]
[398455854,1765673450710,-500.0,0.00021917,2]
[398455855,1765673450719,-500.0,0.00021917,2]
[398455856,1765673450728,-2104.46,0.00021917,2]
[398455857,1765673450738,-500.0,0.00021917,2]
[398455858,1765673450747,-1159.22,0.00021917,2]
[398455859,1765673450757,-500.0,0.00021917,2]
[398455860,1765673450768,-1244.33,0.00021917,2]
[398455861,1765673450778,-500.0,0.00021917,2]
[398455862,1765673450788,-500.0,0.00021917,2]
[398455863,1765673450797,-1292.5,0.00021917,2]
[398455864,1765673450806,-500.0,0.00021917,2]
[398455865,1765673450817,-608.83,0.00021917,2]
[398455866,1765673450826,-500.0,0.00021917,2]
[398455867,1765673450835,-500.0,0.00021917,2]
[398455868,1765673450845,-639.59100103,0.00021917,2]
[398455869,1765673450855,-500.0,0.00021917,2]
[398455870,1765673450865,-166.34871142,0.00021917,2]
[398455871,1765673450878,-500.0,0.00021917,2]
[398455872,1765673450888,-500.0,0.00021917,2]
[398455873,1765673450897,-500.0,0.00021917,2]
[398455874,1765673450906,-571.62,0.00021917,2]
[398455875,1765673450915,-500.0,0.00021917,2]
[398455876,1765673450925,-500.0,0.00021917,2]
[398455877,1765673450935,-500.0,0.00021917,2]
[398455878,1765673450945,-2048.9,0.00021917,2]
[398455879,1765673450957,-500.0,0.00021917,2]
[398455880,1765673450969,-595.57056927,0.00021917,2]
[398455881,1765673450979,-312.19272598,0.00021917,2]
[398455882,1765673450989,-500.0,0.00021917,2]
[398455883,1765673450998,-500.0,0.00021917,2]
[398455884,1765673451008,-500.0,0.00021917,2]
[398455885,1765673451019,-1541.97,0.00021917,2]
[398455886,1765673451027,-854.86,0.00021917,2]
[398455887,1765673451036,-500.0,0.00021917,2]
[398455888,1765673451045,-500.0,0.00021917,2]
[398455889,1765673451055,-500.53539086,0.00021917,2]
[398455890,1765673451063,-500.0,0.00021917,2]
[398455891,1765673451072,-500.0,0.00021917,2]
[398455892,1765673451081,-1616.79,0.00021917,2]
[398455893,1765673451091,-1344.86,0.00021917,2]
[398455894,1765673451100,-836.62,0.00021917,2]
[398455895,1765673451109,-775.68,0.00021917,2]
[398455896,1765673451118,-758.94,0.00021917,2]
[398455897,1765673451128,-500.0,0.00021917,2]
[398455898,1765673451137,-500.0,0.00021917,2]
[398455899,1765673451146,-500.0,0.00021917,2]
[398455900,1765673451156,-500.0,0.00021917,2]
[398455901,1765673451165,-1786.7,0.00021917,2]
[398455902,1765673451175,-500.0,0.00021917,2]
[398455903,1765673451184,-500.0,0.00021917,2]
[398455904,1765673451193,-656.72,0.00021917,2]
[398455905,1765673451202,-500.0,0.00021917,2]
[398455906,1765673451212,-151.0,0.00021917,2]
[398455907,1765673451221,-151.0,0.00021917,2]
[398455908,1765673451231,-151.0,0.00021917,2]
[398455909,1765673451240,-151.0,0.00021917,2]
[398455910,1765673451250,-1233.4,0.00021917,2]
[398455911,1765673451259,-306.879182,0.00021917,2]
[398455912,1765673451268,-151.0,0.00021917,2]
[398455913,1765673451278,-306.879182,0.00021917,2]
[398455914,1765673451287,-151.0,0.00021917,2]
[398455915,1765673451296,-306.879182,0.00021917,2]
[398455916,1765673451305,-224.799139,0.00021917,2]
[398455917,1765673451315,-306.879182,0.00021917,2]
[398455918,1765673451324,-306.879182,0.00021917,2]
[398455919,1765673451334,-306.879182,0.00021917,2]
[398455920,1765673451343,-306.879182,0.00021917,2]
[398455921,1765673451352,-306.879182,0.00021917,2]
[398455922,1765673451361,-855.33,0.00021917,2]
[398455923,1765673451370,-306.879182,0.00021917,2]
[398455924,1765673451379,-306.879182,0.00021917,2]
[398455925,1765673451387,-500.0,0.00021917,2]
[398455926,1765673451396,-306.879182,0.00021917,2]
[398455927,1765673451405,-306.879182,0.00021917,2]
[398455928,1765673451414,-306.879182,0.00021917,2]
[398455929,1765673451423,-306.879182,0.00021917,2]
[398455930,1765673451433,-733.04,0.00021917,2]
[398455931,1765673451442,-306.879182,0.00021917,2]
[398455932,1765673451452,-306.879176,0.00021917,2]
[398455933,1765673451460,-500.0,0.00021917,2]
[398455934,1765673451469,-1404.11,0.00021917,2]
[398455935,1765673451478,-1421.47,0.00021917,2]
[398455936,1765673451487,-1065.76,0.00021917,2]
[398455937,1765673451496,-500.0,0.00021917,2]
[398455938,1765673451506,-500.0,0.00021917,2]
[398455939,1765673451515,-458.73140627,0.00021917,2]
[398455940,1765673451523,-500.0,0.00021917,2]
[398455941,1765673451532,-500.0,0.00021917,2]
[398455942,1765673451541,-753.27,0.00021917,2]
[398455943,1765673451550,-500.0,0.00021917,2]
[398455944,1765673451559,-500.0,0.00021917,2]
[398455945,1765673451568,-831.98,0.00021917,2]
[398455946,1765673451577,-615.1,0.00021917,2]
[398455947,1765673451586,-500.0,0.00021917,2]
[398455948,1765673451595,-1003.73,0.00021917,2]
[398455949,1765673451604,-500.0,0.00021917,2]
[398455950,1765673451613,-1450.32,0.00021917,2]
[398455951,1765673451622,-570.65,0.00021917,2]
[398455952,1765673451631,-922.67,0.00021917,2]
[398455953,1765673451641,-697.1,0.00021917,2]
[398455954,1765673451650,-1263.13,0.00021917,2]
[398455955,1765673451659,-843.75,0.00021917,2]
[398455956,1765673451668,-986.79,0.00021917,2]
[398455957,1765673451677,-500.0,0.00021917,2]
[398455958,1765673451687,-770.68,0.00021917,2]
[398455959,1765673451696,-500.0,0.00021917,2]
[398455960,1765673451705,-500.0,0.00021917,2]
[398455961,1765673451714,-2238.78,0.00021917,2]
[398455962,1765673451724,-1587.01,0.00021917,2]
[398455963,1765673451733,-1000.0,0.00021917,2]
[398455964,1765673451743,-500.0,0.00021917,2]
[398455965,1765673451752,-500.0,0.00021917,2]
[398455966,1765673451762,-500.0,0.00021917,2]
[398455967,1765673451772,-500.0,0.00021917,2]
[398455968,1765673451781,-500.0,0.00021917,2]
[398455969,1765673451791,-500.0,0.00021917,2]
[398455970,1765673451800,-500.0,0.00021917,2]
[398455971,1765673451810,-1056.69,0.00021917,2]
[398455972,1765673451821,-500.0,0.00021917,2]
[398455973,1765673451831,-500.0,0.00021917,2]
[398455974,1765673451840,-527.94,0.00021917,2]
[398455975,1765673451850,-500.0,0.00021917,2]
[398455976,1765673451860,-500.0,0.00021917,2]
[398455977,1765673451869,-500.0,0.00021917,2]
[398455978,1765673451879,-500.0,0.00021917,2]
[398455979,1765673451888,-500.0,0.00021917,2]
[398455980,1765673451897,-500.0,0.00021917,2]
[398455981,1765673451906,-1798.73,0.00021917,2]
[398455982,1765673451917,-500.0,0.00021917,2]
[398455983,1765673451927,-1628.98,0.00021917,2]
[398455984,1765673451936,-500.0,0.00021917,2]
[398455985,1765673451946,-992.38,0.00021917,2]
[398455986,1765673451956,-510.93224393,0.00021917,2]
[398455987,1765673451967,-1370.71,0.00021917,2]
[398455988,1765673451977,-500.0,0.00021917,2]
[398455989,1765673451988,-627.17,0.00021917,2]
[398455990,1765673451999,-250.59919687,0.00021917,2]
[398455991,1765673463330,154.22,0.00012,2]
[398455992,1765673463680,154.22,0.00013,2]
[398455993,1765673523808,154.22,0.00012,2]
[398455995,1765673642281,154.23,0.00012,2]
[398456009,1765674397073,-313.72046547,0.00013699,2]
[398456010,1765674452098,-186.27953453,0.00013699,2]
[398456011,1765674452121,-320.8065565,0.00013699,2]
[398456012,1765674452140,-280.848492,0.00013699,2]
[398456013,1765674452163,-199.28968297,0.00013699,2]
[398456014,1765674452183,-107.06529069,0.00013699,2]
[398456047,1765674631544,-615.0,0.00013699,2]
[398456049,1765674631554,-153.5,0.00015616,3]
[398456051,1765674631568,-152.0,0.00015644,3]
[398456053,1765674631577,-235.16182591,0.00015699,2]
[398456056,1765674631594,-236.7007025,0.00017674,2]
[398456058,1765674631607,-271.03396884,0.00017699,2]
[398456060,1765674631616,-1000.0,0.00017998,2]
[398456061,1765674631626,-974.42705886,0.000181,2]
[398456063,1765674631635,-158.0,0.000181,2]
[398456065,1765674631645,-158.0,0.000181,2]
[398456067,1765674631655,-974.42705886,0.00018393,5]
[398456069,1765674631664,-974.42705886,0.00018686,9]
[398456071,1765674631674,-974.42705886,0.0001898,13]
[398456073,1765674631684,-300.0,0.00018998,2]
[398456075,1765674631693,-1200.0,0.00018999,2]
[398456077,1765674631704,-150.0,0.00018999,16]
[398456079,1765674631714,-172.48848139,0.00019,2]
[398456081,1765674631724,-199.29668196,0.00019,2]
[398456083,1765674631733,-974.42705886,0.00019,2]
[398456085,1765674631743,-158.0,0.00019,2]
[398456087,1765674631752,-158.0,0.00019,2]
[398456089,1765674631761,-500.0,0.00019006,2]
[398456091,1765674631771,-360.48526997,0.00019006,2]
[398456093,1765674631780,-316.3060503,0.00019006,2]
[398456095,1765674631790,-245.89340477,0.00019006,2]
[398456097,1765674631799,-277.88489189,0.00019006,2]
[398456099,1765674631808,-150.0,0.00019007,10]
[398456101,1765674631817,-150.0,0.00019007,10]
[398456103,1765674631827,-150.0,0.00019007,10]
[398456105,1765674631836,-500.0,0.00019007,10]
[398456107,1765674631845,-150.0,0.00019007,10]
[398456109,1765674631855,-150.0,0.00019007,10]
[398456111,1765674631864,-150.0,0.00019007,10]
[398456113,1765674631873,-156.95760975,0.00019007,10]
[398456115,1765674631882,-150.0,0.00019007,10]
[398456117,1765674631892,-582.802,0.00019066,2]
[398456119,1765674631901,-415.0,0.00019066,2]
[398456121,1765674631911,-558.47267183,0.00019089,2]
[398456123,1765674631920,-154.0,0.00019136,16]
[398456125,1765674631929,-150.0,0.00019144,10]
[398456127,1765674631939,-150.0,0.00019144,10]
[398456129,1765674631949,-200.97633239,0.00019144,10]
[398456131,1765674631959,-500.0,0.00019144,10]
[398456133,1765674631968,-150.0,0.00019144,10]
[398456135,1765674631977,-198.41656398,0.00019144,10]
[398456136,1765674631987,-150.0,0.00019144,10]
[398456138,1765674631996,-150.0,0.00019144,10]
[398456140,1765674632005,-500.0,0.00019262,5]
[398456142,1765674632015,-974.42705886,0.00019262,5]
[398456144,1765674632025,-500.0,0.00019272,2]
[398456146,1765674632035,-974.42705886,0.00019273,16]
[398456148,1765674632044,-500.0,0.0001928,2]
[398456150,1765674632054,-500.0,0.0001928,2]
[398456152,1765674632064,-150.0,0.00019281,10]
[398456154,1765674632074,-150.0,0.00019281,10]